bitfinex-derivatives/quotes_BTCF0:USTF0_20250114
["timestamp","ask_amount","ask_price","bid_price","bid_amount"]
[1736866532943,0.3608,96361.0,96360.0,0.0448]
[1736866533141,0.3558,96361.0,96348.0,0.0438]
[1736866533344,0.3608,96349.0,96348.0,0.0438]
[1736866533545,0.3608,96349.0,96341.0,0.0448]
[1736866534147,0.3608,96343.0,96332.0,0.0438]
[1736866534344,0.3608,96335.0,96332.0,0.0438]
[1736866534748,0.3608,96343.0,96332.0,0.0438]
[1736866534947,0.001,96349.0,96333.0,0.052921]
[1736866535454,0.3608,96364.0,96348.0,0.051913]
[1736866535754,0.3608,96364.0,96349.0,0.001]
[1736866535951,0.3608,96364.0,96350.0,0.051912]
[1736866536255,0.3608,96376.0,96358.0,0.051907]
[1736866536452,0.3608,96376.0,96366.0,0.17041102]
[1736866536642,0.3608,96376.0,96366.0,0.22231402]
[1736866536847,0.3608,96376.0,96365.0,0.3608]
[1736866537047,0.3608,96376.0,96359.0,1.5016]
[1736866537048,0.3608,96366.0,96359.0,0.0006]
[1736866537248,0.3608,96366.0,96352.0,0.051911]
[1736866537656,0.3608,96366.0,96353.0,0.001]
[1736866537857,0.3608,96364.0,96356.0,0.3608]
[1736866538055,0.3648,96376.0,96357.0,0.051908]
[1736866538257,0.003,96364.0,96357.0,0.052908]
[1736866538448,0.3648,96376.0,96357.0,0.052908]
[1736866538651,0.004,96366.0,96360.0,0.26325419]
[1736866538957,0.009,96366.0,96361.0,0.001]
[1736866539354,0.006,96364.0,96362.0,0.051905]
[1736866539747,0.004,96366.0,96363.0,0.001]
[1736866539949,0.008,96366.0,96364.0,0.051904]
[1736866540150,0.3608,96376.0,96363.0,0.001]
[1736866540352,0.3608,96376.0,96360.0,0.26325419]
[1736866540660,0.004,96364.0,96360.0,0.26325419]
[1736866541356,0.3658,96376.0,96360.0,0.26325419]
[1736866541861,0.007,96364.0,96362.0,0.001]
[1736866542163,0.3608,96376.0,96363.0,0.052905]
[1736866542664,0.006,96376.0,96371.0,0.0519]
[1736866542855,0.3608,96386.0,96371.0,0.0519]
[1736866543155,0.3608,96395.0,96373.0,0.051899]
[1736866543361,0.3608,96395.0,96380.0,0.26325419]
[1736866543559,0.01030214,96400.0,96387.0,0.051892]
[1736866543757,0.3608,96405.0,96386.0,0.3608]
[1736866544558,0.007,96395.0,96386.0,0.3608]
[1736866545458,0.37180045,96405.0,96386.0,0.3608]
[1736866545664,0.3618,96405.0,96387.0,0.052892]
[1736866546160,0.3618,96405.0,96388.0,0.0443]
[1736866546459,0.3618,96405.0,96389.0,0.001]
[1736866546857,0.3618,96405.0,96388.0,0.0443]
[1736866546858,0.3608,96396.0,96388.0,0.0443]
[1736866547056,0.3608,96396.0,96386.0,0.008]
[1736866547252,0.3608,96387.0,96386.0,0.008]
[1736866547459,0.3608,96387.0,96356.0,0.0469]
[1736866547659,0.3608,96361.0,96356.0,0.0469]
[1736866548563,0.3608,96398.0,96360.0,0.3608]
[1736866548754,0.3608,96398.0,96378.0,0.3608]
[1736866549157,0.02825632,96408.0,96380.0,0.26325419]
[1736866549564,0.3608,96402.0,96381.0,0.001]
[1736866549765,0.3608,96402.0,96386.0,0.3608]
[1736866549963,0.01005632,96408.0,96396.0,0.3608]
[1736866550170,0.0436,96436.0,96415.0,0.051877]
[1736866550362,0.3608,96437.0,96420.0,0.3608]
[1736866551065,0.3608,96428.0,96416.0,0.0456]
[1736866551369,0.001,96402.0,96386.0,0.412692]
[1736866551559,0.001,96402.0,96396.0,0.3608]
[1736866551872,0.3618,96402.0,96386.0,0.3608]
[1736866552060,0.001,96402.0,96396.0,0.3608]
[1736866552465,0.3608,96399.0,96375.0,0.3608]
[1736866552773,0.3608,96399.0,96396.0,0.002]
[1736866553966,0.3618,96399.0,96396.0,0.002]
[1736866554265,0.3618,96399.0,96388.0,0.0453]
[1736866554860,0.001,96399.0,96388.0,0.0453]
[1736866555263,0.001,96399.0,96392.0,0.3608]
[1736866555658,0.001,96399.0,96394.0,0.00255602]
[1736866559572,0.001,96399.0,96372.0,0.4059]
[1736866559573,0.051886,96398.0,96372.0,0.0451]
[1736866559773,0.3608,96385.0,96372.0,0.0451]
[1736866559970,0.0439,96397.0,96372.0,0.0451]
[1736866560166,0.3608,96385.0,96372.0,0.0451]
[1736866560362,0.3608,96376.0,96372.0,0.0451]
[1736866560561,0.3608,96376.0,96357.0,0.0473]
[1736866560765,0.051891,96388.0,96347.0,0.24641589]
[1736866560766,0.3608,96364.0,96347.0,0.24641589]
[1736866560975,0.3608,96351.0,96347.0,0.24641589]
[1736866561572,0.3608,96351.0,96341.0,0.0927]
[1736866562475,0.3608,96342.0,96341.0,0.0473]
[1736866562676,0.3608,96342.0,96340.0,0.00155674]
[1736866562677,0.3578,96342.0,96340.0,0.00155674]
[1736866563272,0.3608,96351.0,96340.0,0.00155674]
[1736866563476,0.3608,96351.0,96341.0,0.003]
[1736866563666,0.3538,96342.0,96341.0,0.003]
[1736866564277,0.3538,96342.0,96320.0,0.051928]
[1736866564278,0.3548,96342.0,96320.0,0.051928]
[1736866564590,0.3608,96331.0,96321.0,0.3608]
[1736866564773,0.3518,96331.0,96321.0,0.3608]
[1736866564976,0.3518,96331.0,96312.0,0.0464]
[1736866565179,0.3608,96318.0,96312.0,0.0464]
[1736866565377,0.3518,96331.0,96320.0,0.009]
[1736866565887,0.3518,96331.0,96320.0,0.63305419]
[1736866566072,0.3508,96331.0,96321.0,0.052927]
[1736866566777,0.3508,96331.0,96321.0,0.001]
[1736866566976,0.3518,96331.0,96320.0,0.3608]
[1736866568482,0.3608,96321.0,96312.0,0.0464]
[1736866570284,0.3618,96321.0,96312.0,0.0464]
[1736866570984,0.3628,96321.0,96312.0,0.0464]
[1736866571781,0.3628,96321.0,96313.0,0.3608]
[1736866571782,0.002,96321.0,96313.0,0.3608]
[1736866572084,0.002,96321.0,96314.0,1.5]
[1736866572586,0.002,96321.0,96315.0,0.001]
[1736866572784,0.001,96321.0,96315.0,0.001]
[1736866573089,0.002,96321.0,96315.0,0.001]
[1736866573585,0.002,96321.0,96314.0,1.50052]
[1736866573586,0.3608,96320.0,96314.0,0.00052]
[1736866573790,0.051929,96319.0,96292.0,0.00155742]
[1736866573989,0.3608,96301.0,96292.0,0.00155742]
[1736866574877,0.3608,96317.0,96292.0,0.00155742]
[1736866575077,0.3608,96317.0,96300.0,0.27089973]
[1736866575284,0.3608,96317.0,96301.0,0.097638]
[1736866575581,0.001,96321.0,96316.0,0.3608]
[1736866575780,0.001,96321.0,96317.0,0.046]
[1736866576176,0.00155796,96329.0,96317.0,0.046]
[1736866577088,0.00155796,96329.0,96319.0,9.943e-05]
[1736866577288,0.006,96321.0,96319.0,9.943e-05]
[1736866577691,0.003,96321.0,96319.0,9.943e-05]
[1736866578397,0.01,96321.0,96319.0,9.943e-05]
[1736866578580,0.01,96321.0,96320.0,0.051928]
[1736866578891,0.3608,96351.0,96328.0,0.051923]
[1736866579192,0.3608,96361.0,96343.0,0.3608]
[1736866579392,0.3608,96361.0,96339.0,0.051918]
[1736866579590,0.3608,96361.0,96350.0,0.3608]
[1736866579892,0.3608,96361.0,96346.0,0.3608]
[1736866580088,0.17089973,96360.0,96346.0,0.3608]
[1736866580280,0.3608,96361.0,96350.0,0.17089973]
[1736866580487,0.004,96361.0,96357.0,0.3608]
[1736866580695,0.004,96361.0,96358.0,0.0451]
[1736866581594,0.00084,96380.0,96360.0,0.051906]
[1736866581785,0.00084,96380.0,96370.0,0.3608]
[1736866582093,0.3608,96375.0,96361.0,0.001]
[1736866582289,0.3608,96375.0,96359.0,0.3608]
[1736866582680,0.003,96361.0,96359.0,0.3608]
[1736866583300,0.011,96361.0,96359.0,0.3608]
[1736866583489,0.008,96361.0,96358.0,0.0461]
[1736866583885,0.008,96361.0,96358.0,0.0451]
[1736866583886,0.004,96361.0,96358.0,0.0451]
[1736866584386,0.3638,96375.0,96358.0,0.0451]
[1736866584592,0.004,96361.0,96360.0,0.17089973]
[1736866584788,0.003,96375.0,96359.0,0.001]
[1736866585088,0.003,96375.0,96365.0,0.17089973]
[1736866585290,0.00084,96380.0,96373.0,0.3608]
[1736866585491,0.3608,96399.0,96377.0,0.051897]
[1736866585690,0.3608,96399.0,96387.0,0.3608]
[1736866586592,0.00155687,96405.0,96395.0,0.3608]
[1736866586986,0.017,96399.0,96396.0,0.001]
[1736866587994,0.008,96399.0,96396.0,0.001]
[1736866588200,0.008,96399.0,96397.0,0.051887]
[1736866588592,0.003,96405.0,96399.0,0.051885]
[1736866588787,0.003,96405.0,96404.0,0.3608]
[1736866589292,0.3608,96421.0,96404.0,0.3618]
[1736866589496,0.3608,96437.0,96414.0,0.3608]
[1736866589693,0.01035836,96442.0,96422.0,0.3608]
[1736866589895,0.4054,96447.0,96431.0,0.3608]
[1736866590092,0.4054,96447.0,96439.0,0.3608]
[1736866590093,0.3608,96447.0,96439.0,0.3608]
[1736866590488,0.3608,96447.0,96440.0,0.001]
[1736866590898,0.009,96442.0,96440.0,0.001]
[1736866591200,0.016,96442.0,96440.0,0.001]
[1736866591790,0.016,96442.0,96439.0,0.3608]
[1736866592186,0.3608,96457.0,96440.0,0.001]
[1736866592398,0.3608,96467.0,96449.0,0.3608]
[1736866592597,0.3608,96467.0,96458.0,0.3608]
[1736866593692,0.009,96467.0,96458.0,0.3618]
[1736866593893,0.009,96467.0,96466.0,0.3608]
[1736866594094,0.009,96467.0,96459.0,0.0447]
[1736866594294,0.013,96467.0,96459.0,0.0437]
[1736866594798,0.013,96467.0,96458.0,0.001]
[1736866595305,0.013,96467.0,96463.0,0.3608]
[1736866595798,0.013,96467.0,96464.0,0.001]
[1736866595989,0.013,96467.0,96463.0,0.3608]
[1736866596189,0.013,96467.0,96464.0,0.001]
[1736866596388,0.013,96467.0,96466.0,0.3608]
[1736866596389,0.012,96467.0,96466.0,0.3608]
[1736866596598,0.011,96467.0,96466.0,0.3608]
[1736866596792,0.003,96467.0,96466.0,0.3608]
[1736866596989,0.012,96467.0,96466.0,0.3608]
[1736866597193,0.012,96467.0,96466.0,0.3618]
[1736866597388,0.009,96467.0,96466.0,0.3618]
[1736866597594,0.003,96467.0,96466.0,0.3628]
[1736866597799,0.011,96467.0,96466.0,0.3628]
[1736866598299,0.00066,96491.0,96466.0,0.3628]
[1736866598492,0.00066,96491.0,96470.0,0.26291001]
[1736866598689,0.00066,96491.0,96480.0,0.26291001]
[1736866599100,0.3608,96487.0,96481.0,0.001]
[1736866599299,0.3608,96487.0,96470.0,0.26291001]
[1736866599300,0.3608,96487.0,96467.0,0.0457]
[1736866599695,0.3608,96487.0,96470.0,0.001]
[1736866599904,0.3608,96487.0,96480.0,0.001]
[1736866600089,0.051839,96485.0,96480.0,0.001]
[1736866600293,0.051839,96485.0,96481.0,0.001]
[1736866600488,0.05184,96483.0,96481.0,0.001]
[1736866600893,0.05184,96483.0,96470.0,0.001]
[1736866601098,0.3608,96471.0,96470.0,0.001]
[1736866602500,0.3608,96471.0,96456.0,0.0455]
[1736866602706,0.3608,96461.0,96446.0,0.3608]
[1736866603201,0.3608,96461.0,96450.0,0.26291001]
[1736866603393,0.3648,96471.0,96460.0,0.001]
[1736866603592,0.3638,96471.0,96460.0,0.001]
[1736866603799,0.3608,96463.0,96448.0,0.3608]
[1736866604099,0.3608,96463.0,96437.0,0.3608]
[1736866604495,0.3608,96463.0,96450.0,0.26291001]
[1736866605090,0.3638,96471.0,96460.0,0.001]
[1736866605296,0.3608,96471.0,96460.0,0.30811001]
[1736866605501,0.003,96471.0,96465.0,0.3608]
[1736866605895,0.003,96471.0,96466.0,0.001]
[1736866605896,0.007,96471.0,96466.0,0.001]
[1736866606101,0.007,96471.0,96466.0,0.045]
[1736866606493,0.007,96471.0,96466.0,0.001]
[1736866606800,0.3608,96470.0,96460.0,0.001]
[1736866607192,0.3608,96461.0,96460.0,0.001]
[1736866607397,0.3608,96461.0,96435.0,0.3608]
[1736866607596,0.3608,96452.0,96434.0,0.0882]
[1736866607906,0.3608,96452.0,96436.0,0.001]
[1736866608104,0.3608,96452.0,96435.0,0.001]
[1736866608498,0.3608,96452.0,96434.0,0.0882]
[1736866609507,0.3608,96452.0,96435.0,0.001]
[1736866610502,0.3608,96438.0,96435.0,0.001]
[1736866610900,0.3608,96438.0,96435.0,0.003]
[1736866611606,0.3608,96437.0,96435.0,0.003]
[1736866611803,0.051866,96436.0,96435.0,0.003]
[1736866612008,0.051866,96436.0,96419.0,0.00155558]
[1736866612309,0.3608,96423.0,96419.0,0.00155558]
[1736866612701,0.051873,96422.0,96419.0,0.00155558]
[1736866613505,0.051873,96422.0,96419.0,0.00255558]
[1736866614103,0.056873,96422.0,96419.0,0.001]
[1736866614299,0.005,96422.0,96419.0,0.001]
[1736866615307,0.008,96422.0,96419.0,0.001]
[1736866615808,0.005,96422.0,96410.0,0.1704694]
[1736866616012,0.005,96422.0,96411.0,0.0468]
[1736866616204,0.003,96422.0,96411.0,0.0478]
[1736866616509,0.004,96422.0,96411.0,0.0478]
[1736866616705,0.004,96422.0,96420.0,0.3608]
[1736866616902,0.3608,96437.0,96420.0,0.3608]
[1736866617102,0.3608,96437.0,96420.0,0.5312694]
[1736866617300,0.3608,96446.0,96429.0,0.3608]
[1736866617497,0.00155616,96450.0,96429.0,0.3608]
[1736866617498,0.00155616,96450.0,96441.0,0.3608]
[1736866617697,0.3608,96457.0,96441.0,0.3608]
[1736866618305,0.3608,96457.0,96447.0,0.1704694]
[1736866618502,0.3608,96457.0,96441.0,0.3608]
[1736866618707,0.3608,96448.0,96420.0,0.1704694]
[1736866618905,0.3608,96436.0,96422.0,0.0482]
[1736866619302,0.3608,96448.0,96422.0,0.0482]
[1736866619303,0.3608,96448.0,96430.0,0.001]
[1736866619507,0.3608,96448.0,96441.0,0.3608]
[1736866620005,0.3628,96448.0,96441.0,0.3608]
[1736866620411,0.05186,96447.0,96422.0,0.0482]
[1736866620605,0.3608,96430.0,96422.0,0.0482]
[1736866620917,0.05187,96429.0,96416.0,0.24641589]
[1736866621097,0.3608,96420.0,96416.0,0.24641589]
[1736866621908,0.3608,96420.0,96407.0,0.0015558]
[1736866622898,0.3618,96420.0,96407.0,0.0015558]
[1736866623415,0.3618,96420.0,96407.0,0.0025558]
[1736866623416,0.3608,96408.0,96407.0,0.0025558]
[1736866623612,0.3608,96408.0,96407.0,0.0055558]
[1736866624614,0.37089699,96408.0,96407.0,0.0055558]
[1736866624810,0.3608,96408.0,96407.0,0.0055558]
[1736866625113,0.3608,96434.0,96407.0,0.0035558]
[1736866625413,0.00108001,96475.0,96407.0,0.0035558]
[1736866625414,0.3608,96462.0,96437.0,0.051865]
[1736866625710,0.3608,96462.0,96452.0,0.1704694]
[1736866626010,0.3608,96462.0,96448.0,0.3608]
[1736866626011,0.3608,96462.0,96453.0,0.001]
[1736866626404,0.3608,96462.0,96442.0,0.0482]
[1736866626711,0.3628,96462.0,96438.0,0.4512]
[1736866626914,0.3608,96454.0,96438.0,0.4512]
[1736866627215,0.3668,96462.0,96452.0,0.001]
[1736866627413,0.3718,96462.0,96452.0,0.001]
[1736866628311,0.423652,96462.0,96452.0,0.001]
[1736866628509,0.417652,96462.0,96447.0,0.3608]
[1736866628707,0.3608,96449.0,96442.0,0.001]
[1736866629013,0.3608,96449.0,96418.0,0.24641589]
[1736866629317,0.3608,96422.0,96418.0,0.24641589]
[1736866629707,0.3608,96419.0,96407.0,0.0015558]
[1736866630013,0.051869,96431.0,96407.0,0.0014958]
[1736866630312,0.3608,96433.0,96416.0,0.3608]
[1736866630812,0.3608,96423.0,96408.0,0.001]
[1736866631015,0.3608,96415.0,96407.0,0.0014958]
[1736866631315,0.3608,96415.0,96396.0,0.3608]
[1736866632108,0.3608,96415.0,96407.0,0.003]
[1736866632706,0.3608,96415.0,96407.0,0.002]
[1736866632913,0.3608,96415.0,96400.0,0.26364386]
[1736866633104,0.3608,96415.0,96400.0,0.001]
[1736866633415,0.3618,96415.0,96400.0,0.001]
[1736866633918,0.3618,96415.0,96407.0,0.002]
[1736866634907,0.3608,96415.0,96407.0,0.002]
[1736866635307,0.3608,96415.0,96399.0,0.0956]
[1736866635607,0.3608,96415.0,96400.0,0.001]
[1736866636014,0.3638,96415.0,96399.0,0.0956]
[1736866636211,0.3648,96415.0,96399.0,0.0956]
[1736866637110,0.3638,96415.0,96400.0,0.002]
[1736866638007,0.3608,96405.0,96400.0,0.001]
[1736866638213,0.3608,96415.0,96400.0,0.001]
[1736866638414,0.3608,96415.0,96400.0,0.26364386]
[1736866638622,0.3608,96428.0,96400.0,0.26364386]
[1736866638817,0.3608,96428.0,96410.0,0.26264386]
[1736866639014,0.01026499,96433.0,96410.0,0.26264386]
[1736866639211,0.3608,96437.0,96411.0,0.001]
[1736866639412,0.3608,96437.0,96411.0,0.3608]
[1736866639413,0.3608,96426.0,96411.0,0.3608]
[1736866639614,0.3608,96437.0,96413.0,0.051878]
[1736866639817,0.36235608,96448.0,96436.0,0.3608]
[1736866640424,0.003,96437.0,96436.0,0.3608]
[1736866640621,0.003,96437.0,96422.0,0.3608]
[1736866641510,0.003,96437.0,96430.0,0.3608]
[1736866641723,0.003,96437.0,96431.0,0.0918]
[1736866641916,0.001,96437.0,96436.0,0.001]
[1736866642410,0.36935608,96448.0,96436.0,0.002]
[1736866642615,0.3608,96470.0,96439.0,0.412664]
[1736866642811,0.60765088,96462.0,96447.0,0.3608]
[1736866643221,0.60765088,96462.0,96448.0,0.001]
[1736866643922,0.61365088,96462.0,96448.0,0.001]
[1736866644113,0.3668,96462.0,96448.0,0.001]
[1736866644818,0.006,96462.0,96451.0,0.051857]
[1736866645326,0.3678,96462.0,96452.0,0.001]
[1736866645521,0.3608,96454.0,96448.0,0.001]
[1736866646021,0.3608,96454.0,96451.0,0.001]
[1736866646221,0.3608,96461.0,96451.0,0.001]
[1736866646614,0.3608,96452.0,96451.0,0.001]
[1736866646820,0.3608,96452.0,96438.0,0.001]
[1736866647016,0.3608,96442.0,96420.0,0.00052]
[1736866647229,0.3608,96442.0,96431.0,0.0453]
[1736866648113,0.3608,96442.0,96432.0,0.001]
[1736866648318,0.3608,96452.0,96436.0,0.3608]
[1736866648520,0.3608,96452.0,96440.0,0.26264386]
[1736866648919,0.003,96442.0,96441.0,0.001]
[1736866649319,0.003,96442.0,96436.0,0.3608]
[1736866649522,0.3678,96452.0,96436.0,0.3608]
[1736866649721,0.3658,96452.0,96436.0,0.3608]
[1736866650021,0.007,96442.0,96441.0,0.001]
[1736866650428,0.007,96442.0,96441.0,0.002]
[1736866650621,0.007,96442.0,96441.0,0.001]
[1736866651022,0.007,96442.0,96417.0,0.046]
[1736866651214,0.3608,96432.0,96417.0,0.046]
[1736866651414,0.3608,96423.0,96406.0,0.3608]
[1736866651622,0.051873,96422.0,96397.0,0.18512616]
[1736866651918,0.3608,96404.0,96393.0,0.0481]
[1736866652124,0.3608,96395.0,96393.0,0.0481]
[1736866652822,0.3608,96404.0,96393.0,0.0481]
[1736866653025,0.3608,96404.0,96393.0,0.0511]
[1736866653324,0.3608,96404.0,96394.0,0.001]
[1736866653519,0.3608,96404.0,96395.0,0.051888]
[1736866653715,0.3608,96426.0,96400.0,0.3608]
[1736866653921,0.00155641,96431.0,96411.0,0.051879]
[1736866654116,0.3608,96440.0,96428.0,0.3608]
[1736866654318,0.3608,96440.0,96430.0,0.26264386]
[1736866654627,0.3608,96440.0,96429.0,0.0456]
[1736866654930,0.3608,96431.0,96415.0,0.3608]
[1736866655232,0.3608,96431.0,96416.0,0.001]
[1736866655731,0.3608,96431.0,96429.0,0.001]
[1736866656323,0.3608,96431.0,96416.0,0.004]
[1736866656827,0.3608,96421.0,96416.0,0.002]
[1736866657233,0.3608,96419.0,96416.0,0.002]
[1736866657429,0.051875,96418.0,96395.0,0.00155572]
[1736866657624,0.3608,96402.0,96395.0,0.00155572]
[1736866657931,0.3608,96402.0,96396.0,0.001]
[1736866658329,0.3608,96397.0,96395.0,0.00155572]
[1736866658828,0.051887,96396.0,96368.0,0.3608]
[1736866659036,0.3608,96374.0,96363.0,0.0927]
[1736866659225,0.3608,96374.0,96369.0,0.001]
[1736866659534,0.3608,96374.0,96364.0,0.001]
[1736866660037,0.3608,96374.0,96368.0,0.015]
[1736866660334,0.3608,96383.0,96368.0,0.015]
[1736866660534,0.3608,96374.0,96369.0,0.001]
[1736866660731,0.3608,96374.0,96368.0,0.009]
[1736866660926,0.3608,96371.0,96368.0,0.009]
[1736866661825,0.3608,96371.0,96364.0,0.001]
[1736866662429,0.3628,96371.0,96364.0,0.001]
[1736866663033,0.3628,96371.0,96369.0,0.001]
[1736866663430,0.002,96371.0,96369.0,0.001]
[1736866663835,0.3608,96374.0,96370.0,0.0469]
[1736866664135,0.3608,96374.0,96371.0,0.0489]
[1736866664324,0.3608,96374.0,96371.0,0.0499]
[1736866664526,0.3608,96390.0,96371.0,0.0499]
[1736866664731,0.3608,96390.0,96377.0,0.26264386]
[1736866665023,0.3608,96390.0,96371.0,0.0499]
[1736866665024,0.3608,96378.0,96371.0,0.0499]
[1736866665336,0.3608,96378.0,96371.0,0.0489]
[1736866665926,0.3608,96378.0,96370.0,0.0469]
[1736866666127,0.3638,96378.0,96358.0,0.3608]
[1736866666529,0.3638,96378.0,96365.0,0.001]
[1736866666732,0.3638,96378.0,96359.0,0.001]
[1736866666933,0.3648,96378.0,96359.0,0.001]
[1736866667129,0.3618,96378.0,96359.0,0.001]
[1736866667738,0.3608,96378.0,96365.0,0.001]
[1736866669029,0.37118307,96378.0,96365.0,0.001]
[1736866669433,0.37218307,96378.0,96359.0,0.001]
[1736866669639,0.3608,96368.0,96359.0,0.001]
[1736866670032,0.3608,96368.0,96343.0,0.00155658]
[1736866670033,0.3608,96360.0,96343.0,0.00155658]
[1736866670233,0.3608,96344.0,96343.0,0.00155658]
[1736866670440,0.7216,96344.0,96319.0,0.0467]
[1736866670631,0.7216,96344.0,96307.0,0.0491]
[1736866670632,0.3608,96320.0,96307.0,0.0491]
[1736866670835,0.3608,96320.0,96305.0,0.0467]
[1736866671146,0.3608,96320.0,96312.0,0.001]
[1736866671331,0.3608,96320.0,96306.0,0.001]
[1736866671638,0.0508,96342.0,96313.0,0.3618]
[1736866671841,0.3608,96343.0,96321.0,0.3608]
[1736866672135,0.3608,96343.0,96330.0,0.26264386]
[1736866672327,0.3608,96351.0,96338.0,0.3608]
[1736866672533,0.3608,96351.0,96331.0,0.0955]
[1736866672729,0.3608,96343.0,96339.0,0.001]
[1736866672934,0.3608,96343.0,96331.0,0.0945]
[1736866673135,0.3608,96351.0,96331.0,0.0945]
[1736866673330,0.004,96343.0,96332.0,0.001]
[1736866674139,0.3608,96341.0,96332.0,0.001]
[1736866675036,0.3688,96343.0,96331.0,0.0955]
[1736866675237,0.008,96343.0,96335.0,0.3608]
[1736866675636,0.3608,96342.0,96336.0,0.001]
[1736866675837,0.009,96341.0,96332.0,0.001]
[1736866676146,0.3608,96333.0,96332.0,0.001]
[1736866676344,0.3608,96333.0,96316.0,0.0506]
[1736866676646,0.3608,96333.0,96317.0,0.001]
[1736866676939,0.3608,96333.0,96316.0,0.0506]
[1736866677145,0.37085319,96333.0,96316.0,0.0506]
[1736866677444,0.3608,96324.0,96315.0,0.0476]
[1736866678244,0.3608,96324.0,96301.0,0.0468]
[1736866678449,0.3608,96324.0,96302.0,0.0494]
[1736866678742,0.3608,96324.0,96305.0,0.001]
[1736866679145,0.3618,96324.0,96305.0,0.001]
[1736866679643,0.3608,96324.0,96305.0,0.001]
[1736866680143,0.3608,96324.0,96305.0,0.003]
[1736866680345,0.3608,96324.0,96305.0,0.006]
[1736866680541,0.3608,96315.0,96305.0,0.006]
[1736866680738,0.3608,96306.0,96305.0,0.005]
[1736866681341,0.051936,96305.0,96263.0,0.24641589]
[1736866681543,0.3608,96287.0,96269.0,0.0505]
[1736866681739,0.3608,96287.0,96270.0,0.001]
[1736866681941,0.3608,96272.0,96269.0,0.0515]
[1736866682843,0.37090789,96287.0,96269.0,0.0515]
[1736866683046,0.3618,96287.0,96270.0,0.26864386]
[1736866683240,0.3618,96287.0,96274.0,0.3608]
[1736866683442,0.3618,96287.0,96271.0,0.001]
[1736866683742,0.3618,96287.0,96270.0,0.32059886]
[1736866683743,0.3608,96287.0,96275.0,0.001]
[1736866683944,0.3608,96295.0,96275.0,0.051952]
[1736866684138,0.3608,96295.0,96283.0,0.3608]
[1736866684650,0.3608,96295.0,96284.0,0.001]
[1736866684943,0.3608,96295.0,96285.0,0.051947]
[1736866685148,0.001,96287.0,96285.0,0.051947]
[1736866685341,0.001,96287.0,96286.0,0.001]
[1736866685648,0.001,96295.0,96286.0,1.501]
[1736866685943,0.001,96295.0,96283.0,0.3688]
[1736866685944,0.3608,96287.0,96283.0,0.008]
[1736866686144,0.001,96287.0,96283.0,0.008]
[1736866686341,0.002,96287.0,96285.0,0.007]
[1736866686648,0.00033896,96287.0,96285.0,0.007]
[1736866686847,0.00033896,96287.0,96286.0,0.003]
[1736866687546,0.00033896,96287.0,96285.0,0.007]
[1736866687743,0.00033896,96287.0,96285.0,0.01]
[1736866687941,0.3608,96291.0,96285.0,0.003]
[1736866688142,0.3608,96291.0,96286.0,0.007]
[1736866688647,0.001,96287.0,96285.0,0.01]
[1736866689241,0.3618,96291.0,96285.0,0.008]
[1736866689449,0.3618,96291.0,96286.0,0.005]
[1736866689850,0.37188521,96291.0,96286.0,0.004]
[1736866690149,0.001,96287.0,96285.0,0.012]
[1736866690943,0.001,96287.0,96286.0,0.004]
[1736866691942,0.0464,96290.0,96286.0,0.011]
[1736866692344,0.0464,96290.0,96257.0,0.0435]
[1736866692350,0.098345,96289.0,96257.0,0.0435]
[1736866692547,0.3498,96269.0,96260.0,0.17105751]
[1736866692743,0.3498,96269.0,96261.0,0.001]
[1736866693048,0.3498,96269.0,96257.0,0.0435]
[1736866693249,0.3498,96269.0,96262.0,0.001]
[1736866693450,0.3498,96269.0,96261.0,0.001]
[1736866693643,0.3498,96269.0,96258.0,0.001]
[1736866694045,0.3498,96269.0,96262.0,0.001]
[1736866694245,0.3498,96269.0,96258.0,0.001]
[1736866694443,0.3498,96269.0,96257.0,0.004]
[1736866694846,0.001,96269.0,96261.0,0.3608]
[1736866695347,0.001,96269.0,96262.0,0.001]
[1736866696253,0.001,96269.0,96263.0,0.051959]
[1736866696749,0.001,96269.0,96265.0,0.051958]
[1736866696956,0.3608,96277.0,96265.0,0.051958]
[1736866697145,0.3608,96277.0,96270.0,0.3608]
[1736866697449,0.3608,96277.0,96267.0,0.17105751]
[1736866697450,0.01022289,96282.0,96272.0,0.3608]
[1736866697654,0.3608,96289.0,96272.0,0.3608]
[1736866697951,0.3608,96289.0,96279.0,0.17105751]
[1736866698144,0.3608,96289.0,96282.0,0.3608]
[1736866698545,0.3608,96289.0,96283.0,0.001]
[1736866698741,0.37096854,96289.0,96283.0,0.001]
[1736866698945,0.37096854,96289.0,96264.0,0.0441]
[1736866699143,0.37096854,96289.0,96273.0,0.3608]
[1736866699349,0.37096854,96289.0,96273.0,0.3618]
[1736866699557,0.37496854,96289.0,96273.0,0.3608]
[1736866699853,0.37496854,96289.0,96274.0,0.001]
[1736866700948,0.37096854,96289.0,96274.0,0.001]
[1736866701752,0.37096854,96289.0,96273.0,0.3608]
[1736866702749,0.37096854,96289.0,96270.0,0.53185751]
[1736866703049,0.37096854,96289.0,96280.0,0.3608]
[1736866703050,0.3608,96289.0,96280.0,0.3608]
[1736866703257,0.3608,96289.0,96273.0,0.001]